bitfinex/quotes_ETHUSD_20241106
["timestamp","ask_amount","ask_price","bid_price","bid_amount"]
[1730922238724,2.31933833,2664.5,2663.1,0.8001]
[1730922239412,2.31933833,2664.5,2663.2,0.075085]
[1730922239611,2.31933833,2664.5,2663.3,0.8268]
[1730922240667,0.55,2664.4,2663.3,0.8268]
[1730922240959,0.55,2664.2,2663.3,0.8268]
[1730922241454,2.86817426,2664.2,2663.3,0.8268]
[1730922243158,2.31817426,2664.2,2663.3,0.8268]
[1730922243530,0.28693383,2664.3,2663.3,0.8268]
[1730922243740,0.55,2664.4,2663.3,0.8268]
[1730922244263,2.31762227,2664.3,2663.3,0.8268]
[1730922244919,0.55,2664.4,2663.3,0.8268]
[1730922245522,5.31599583,2664.3,2663.3,0.8268]
[1730922248227,0.55,2664.4,2662.8,0.7605]
[1730922248432,3.55,2664.5,2662.8,0.7605]
[1730922248764,0.55,2664.3,2662.8,0.7605]
[1730922250537,0.5501968,2664.4,2662.9,0.07509774]
[1730922250838,1.95196797,2664.6,2662.9,0.07509774]
[1730922250839,1.14916797,2664.6,2663.0,0.8136]
[1730922251338,0.75764865,2664.6,2663.0,0.8136]
[1730922251637,0.8268,2664.8,2663.2,0.8136]
[1730922251836,0.8268,2664.8,2663.3,0.8136]
[1730922252037,5.42616079,2664.8,2663.3,0.8136]
[1730922253373,2.42616079,2664.8,2663.3,0.8136]
[1730922254136,1.59936079,2664.8,2663.5,0.8039]
[1730922254350,3.84447912,2665.0,2663.7,0.8039]
[1730922254550,3.84447912,2665.0,2663.9,0.8039]
[1730922254768,3.84447912,2665.0,2664.0,0.07506676]
[1730922254974,3.84447912,2665.0,2664.1,13.118]
[1730922255167,3.84447912,2665.0,2664.3,0.8209]
[1730922255362,3.84447912,2665.0,2664.5,0.8209]
[1730922256482,6.80306464,2665.7,2664.5,0.8209]
[1730922256667,5.30182564,2665.7,2664.5,0.8209]
[1730922257078,1.501124,2665.8,2664.6,3.5653]
[1730922257278,0.2307924,2665.8,2664.8,0.7867]
[1730922257492,1.500991,2666.0,2664.8,0.7867]
[1730922257801,6.57351868,2666.5,2664.8,0.86174803]
[1730922258095,1.500678,2666.5,2665.1,0.55]
[1730922258279,4.08096114,2667.1,2665.3,0.7879]
[1730922258483,0.01,2666.9,2665.5,0.7879]
[1730922258662,0.8239,2666.8,2665.6,13.108]
[1730922258856,0.8239,2666.8,2665.5,0.78055618]
[1730922259056,0.8239,2666.4,2665.6,12.06528455]
[1730922259271,0.8239,2666.2,2663.8,0.01]
[1730922259474,0.8239,2666.2,2663.9,13.112]
[1730922259688,0.8239,2666.2,2664.0,1.3122]
[1730922259884,0.55,2666.1,2664.1,0.07505138]
[1730922260581,0.55,2666.1,2664.2,13.114]
[1730922260897,0.55,2666.1,2664.3,0.07505133]
[1730922261295,0.55,2666.1,2663.8,0.08505054]
[1730922261456,0.55,2666.1,2663.9,1.05712307]
[1730922261656,0.55,2666.1,2664.0,0.07505128]
[1730922261995,0.55,2666.1,2664.3,0.55]
[1730922262297,0.55,2666.1,2664.5,0.8075]
[1730922262544,0.55,2666.1,2664.7,0.8075]
[1730922262844,0.55,2666.1,2664.8,13.113]
[1730922263144,0.55,2666.1,2664.9,0.7956]
[1730922263328,0.7567946,2666.1,2664.9,0.8706451]
[1730922263644,0.8239,2666.2,2665.1,0.7956]
[1730922263844,0.8239,2666.2,2665.2,13.111]
[1730922266154,0.8239,2666.2,2665.1,0.7956]
[1730922266523,1.5946447,2666.2,2665.1,0.7956]
[1730922267441,0.8323,2666.1,2665.1,0.7956]
[1730922267743,0.8323,2665.9,2664.0,0.7558]
[1730922268155,0.8323,2665.9,2664.0,0.75138718]
[1730922268156,0.55,2665.8,2664.0,0.75138718]
[1730922268335,0.8323,2665.6,2664.0,0.75138718]
[1730922268656,0.8323,2665.4,2664.0,0.75138718]
[1730922269831,0.55,2665.3,2664.0,0.75138718]
[1730922270134,0.8152,2665.2,2664.0,0.75138718]
[1730922271623,0.8152,2665.2,2664.1,13.118]
[1730922271858,0.55,2664.9,2663.7,0.7885]
[1730922272060,0.55,2664.7,2663.7,0.7885]
[1730922272270,0.55,2664.7,2663.8,13.12]
[1730922272961,0.55,2664.7,2663.8,12.507]
[1730922274217,1.29574047,2664.7,2663.8,12.507]
[1730922274422,0.21093405,2664.6,2663.8,12.507]
[1730922274950,0.55,2664.7,2663.8,12.507]
[1730922275423,0.8101,2664.6,2663.8,12.507]
[1730922276224,0.8101,2664.6,2663.9,13.121]
[1730922276423,0.8101,2664.6,2663.5,0.7814]
[1730922276736,0.8101,2664.6,2663.6,13.119]
[1730922276934,0.8101,2664.6,2663.6,14.54815201]
[1730922279471,0.8101,2664.6,2663.7,13.121]
[1730922280365,1.360881,2664.7,2663.7,7.132]
[1730922280366,0.55,2664.5,2663.7,7.132]
[1730922280568,0.7611,2664.4,2663.7,7.132]
[1730922280752,0.7611,2664.4,2663.6,13.121]
[1730922280928,0.7611,2664.4,2663.5,0.7814]
[1730922281134,0.7611,2664.4,2663.6,13.122]
[1730922281978,0.39178569,2664.4,2663.6,13.122]
[1730922283238,0.39178569,2664.4,2663.6,14.51234]
[1730922284378,0.55,2664.6,2663.6,14.51234]
[1730922284684,0.55,2664.6,2663.6,1.39034]
[1730922284897,0.55,2664.6,2663.5,0.7814]
[1730922286037,1.30085714,2664.6,2663.5,0.7814]
[1730922286337,0.55,2664.6,2663.5,0.7814]
[1730922287245,1.3275238,2664.6,2663.5,0.7814]
[1730922287444,0.8265,2664.5,2663.5,0.7814]
[1730922287678,0.21540238,2664.4,2663.5,0.7814]
[1730922287987,0.21540238,2664.4,2663.6,13.122]
[1730922288191,0.21540238,2664.4,2663.7,13.122]
[1730922288486,0.21540238,2664.4,2663.5,0.7814]
[1730922288703,0.8265,2664.5,2663.5,0.7814]
[1730922288891,0.8265,2664.5,2663.6,13.122]
[1730922289255,0.7775238,2664.6,2663.6,13.122]
[1730922289256,0.7775238,2664.6,2663.7,0.8242]
[1730922289456,0.8265,2665.2,2663.7,0.89928456]
[1730922289694,0.07526466,2665.7,2663.7,0.89928456]
[1730922289963,0.07526466,2665.7,2663.3,0.01]
[1730922289964,1.57659066,2665.7,2663.9,0.8092]
[1730922290694,2.33652301,2665.7,2663.9,0.8092]
[1730922290861,0.55,2665.6,2663.9,0.8092]
[1730922291054,0.01,2665.5,2663.9,0.8092]
[1730922291256,0.55,2665.4,2663.9,0.8092]
[1730922291453,0.56,2665.4,2663.9,0.8092]
[1730922292270,0.55,2665.4,2663.9,0.8092]
[1730922292515,0.2896523,2665.5,2663.9,0.8092]
[1730922292516,0.55,2665.2,2663.9,0.8092]
[1730922292721,0.7537,2665.1,2663.9,0.8092]
[1730922293031,0.7537,2665.1,2664.0,13.119]
[1730922293235,0.7537,2665.1,2664.0,14.51182]
[1730922293437,0.7537,2665.1,2664.0,13.119]
[1730922294348,0.7537,2665.1,2664.1,0.7625]
[1730922294533,0.74129745,2665.1,2664.1,3.482974]
[1730922294730,1.56659066,2665.7,2664.1,3.482974]
[1730922295118,1.56659066,2665.7,2664.1,0.837574]
[1730922295456,2.51392943,2665.7,2664.1,0.7625]
[1730922295615,0.56,2665.5,2663.3,0.8327]
[1730922296127,0.01,2665.4,2663.3,0.8327]
[1730922296345,0.01,2665.4,2663.4,0.07507437]
[1730922297134,0.01,2665.4,2663.5,0.7828]
[1730922297658,0.81,2665.1,2663.5,0.7828]
[1730922297865,0.55,2665.0,2663.5,0.7828]
[1730922298021,0.55,2664.8,2663.5,0.7828]
[1730922298221,0.55,2665.3,2663.5,0.7828]
[1730922298460,0.81,2665.2,2663.5,0.7828]
[1730922298635,0.55,2664.9,2663.5,0.7828]
[1730922298848,0.7993,2664.7,2663.5,0.7828]
[1730922299318,0.782,2664.3,2663.1,0.8177]
[1730922299524,0.782,2664.3,2663.2,13.123]
[1730922299734,0.782,2664.3,2663.3,1.39407]
[1730922300569,0.782,2664.3,2663.4,13.123]
[1730922300864,0.55,2664.2,2663.0,0.39117083]
[1730922301070,0.7723,2664.1,2663.1,13.123]
[1730922301362,0.7723,2664.1,2663.1,1.3123]
[1730922301523,0.7723,2664.1,2663.2,13.123]
[1730922301724,0.7723,2664.1,2662.8,0.7933]
[1730922302267,0.55,2663.6,2662.6,0.39133786]
[1730922302492,0.8141,2663.5,2662.7,13.126]
[1730922302766,0.8141,2663.5,2662.7,1.35178534]
[1730922303136,0.8141,2663.5,2662.8,13.127]
[1730922303828,0.8141,2663.5,2661.9,0.39145063]
[1730922303829,0.8141,2663.5,2662.3,0.7534]
[1730922304177,0.8141,2663.5,2662.4,13.127]
[1730922304966,0.3649012,2663.5,2662.6,0.7811]
[1730922305260,0.02,2664.8,2662.7,13.19810497]
[1730922305464,0.33918468,2664.8,2662.6,0.7811]
[1730922305665,0.33918468,2664.8,2662.8,0.7811]
[1730922305851,0.02,2664.8,2662.9,0.07509759]
[1730922306052,0.02,2664.8,2662.8,0.7811]
[1730922306365,0.57,2664.8,2662.8,0.7811]
[1730922306569,0.56,2664.8,2662.8,0.7811]
[1730922306764,0.91734089,2664.9,2662.9,0.07509562]
[1730922307065,0.01,2665.1,2663.0,0.8135]
[1730922307370,0.01,2665.1,2662.4,0.02]
[1730922307371,1.25034993,2665.1,2663.2,0.8135]
[1730922307585,0.93248178,2665.1,2663.4,0.8135]
[1730922307881,0.01,2665.4,2663.4,0.8135]
[1730922308089,0.7871,2665.3,2663.4,0.8135]
[1730922308742,0.7871,2665.1,2663.5,0.07507615]
[1730922308943,0.55,2665.0,2663.4,0.8135]
[1730922309391,0.7871,2665.1,2663.4,0.8135]
[1730922311565,0.7838,2665.1,2663.4,0.8135]
[1730922311889,0.55,2665.2,2663.4,0.8135]
[1730922311890,0.7838,2664.9,2663.4,0.8135]
[1730922314069,0.8281,2664.8,2663.4,0.8135]
[1730922315991,0.8281,2664.8,2663.5,0.07507474]
[1730922316175,0.8281,2664.8,2663.6,0.55]
[1730922316377,0.8281,2664.8,2663.7,0.07507102]
[1730922316998,0.8281,2664.8,2663.5,0.55]
[1730922317751,0.8281,2664.8,2663.6,13.19507475]
[1730922317951,0.7987,2664.7,2663.7,1.92450748]
[1730922318175,0.7987,2664.7,2663.8,13.19407052]
[1730922318501,0.2773172,2664.7,2663.8,13.119]
[1730922318703,2.70851325,2665.2,2664.1,0.55]
[1730922318931,5.32524987,2665.7,2664.0,0.8178]
[1730922318932,2.43119625,2665.6,2664.3,0.55]
[1730922319097,2.46023677,2665.7,2664.4,2.0341697]
[1730922319303,2.46023677,2665.7,2664.4,0.8178]
[1730922319488,2.46023677,2665.7,2664.5,13.116]
[1730922320187,0.95891077,2665.7,2664.6,0.07505132]
[1730922320416,1.83179107,2666.5,2664.5,13.116]
[1730922320623,1.86305223,2665.8,2664.5,0.55]
[1730922320827,1.86305223,2665.8,2664.6,13.114]
[1730922320994,5.08536101,2666.2,2664.7,1.3664]
[1730922321189,1.8050741,2665.9,2664.7,1.3664]
[1730922321388,1.8050741,2665.9,2664.8,13.114]
[1730922321585,1.8050741,2665.9,2664.5,13.114]
[1730922321789,1.86305223,2665.8,2664.5,13.114]
[1730922321989,0.8193,2665.7,2664.5,13.114]
[1730922324402,0.8193,2665.5,2664.1,0.7514]
[1730922324591,0.8193,2665.5,2664.2,13.117]
[1730922324792,0.8193,2665.5,2664.3,1.38684]
[1730922325002,0.55,2665.4,2664.3,1.38684]
[1730922325218,0.8307,2665.3,2664.4,13.118]
[1730922325606,0.8307,2665.3,2663.8,0.8243]
[1730922325931,0.55,2665.0,2663.4,0.8139]
[1730922326092,0.7515,2664.9,2663.4,0.8139]
[1730922326433,0.7515,2664.9,2663.5,13.12]
[1730922326591,0.7515,2664.9,2663.6,1.39339]
[1730922327112,0.7515,2664.9,2663.4,0.8139]
[1730922327428,0.7515,2664.9,2663.3,0.39110508]
[1730922327614,0.7515,2664.8,2663.3,0.39110508]
[1730922328901,2.70405578,2664.8,2663.3,0.39110508]
[1730922329235,0.55,2664.4,2662.8,0.7794]
[1730922329433,0.7511,2664.3,2662.7,0.39133217]
[1730922329589,0.7511,2664.0,2662.5,0.7794]
[1730922330087,0.7511,2664.0,2662.2,0.3913974]
[1730922330088,0.7511,2664.0,2662.3,0.7794]
[1730922330794,0.8324,2663.8,2662.3,0.7794]
[1730922331096,0.8324,2663.8,2662.4,13.125]
[1730922332229,0.8324,2663.8,2662.3,0.7794]
[1730922332434,0.8324,2663.8,2662.2,0.3913974]
[1730922332937,0.7967,2663.6,2662.2,0.3913974]
[1730922333089,0.7967,2663.6,2662.1,0.58727059]
[1730922333292,0.7967,2663.4,2662.1,0.58727059]
[1730922333538,0.7967,2663.4,2662.2,13.127]
[1730922335638,0.7967,2663.4,2662.1,0.58727059]
[1730922336137,0.93976576,2663.4,2662.1,0.58727059]
[1730922336353,3.01,2663.5,2662.1,0.58727059]
[1730922336495,0.57192993,2663.4,2661.6,0.05631788]
[1730922337714,0.57192993,2663.4,2661.6,0.13144935]
[1730922338021,0.9367475,2663.5,2661.9,0.55]
[1730922338228,0.37511,2663.9,2662.1,0.55]
[1730922338534,0.01,2664.4,2661.9,0.55]
[1730922338535,2.71929931,2664.4,2661.9,0.55]
[1730922338767,2.70929931,2664.5,2662.1,1.3534]
[1730922338973,0.01,2664.5,2662.3,0.55]
[1730922339280,0.7661,2664.4,2662.5,0.55]
[1730922339641,0.7661,2664.4,2662.7,0.55]
[1730922339938,0.7661,2664.4,2662.9,0.55]
[1730922340144,0.7661,2664.4,2663.1,0.55]
[1730922340457,0.7661,2664.4,2663.3,0.55]
[1730922342491,0.7661,2664.4,2663.4,0.07508264]
[1730922342775,1.8657013,2664.8,2663.5,13.669]
[1730922343070,1.8963516,2665.4,2663.5,13.669]
[1730922343227,1.87104199,2665.2,2663.6,1.3669]
[1730922343429,1.87104199,2665.2,2663.2,0.7554]
[1730922343430,1.87104199,2665.2,2663.3,0.55]
[1730922343926,1.87104199,2665.2,2663.5,0.55]
[1730922344272,1.87104199,2665.2,2663.2,0.7554]
[1730922344273,1.87104199,2665.2,2663.7,0.55]
[1730922345764,1.8456022,2665.0,2663.7,0.55]
[1730922345933,0.1201,2665.1,2663.8,0.8965702]
[1730922346135,0.1201,2665.1,2663.9,13.118]
[1730922346472,0.1201,2665.1,2664.0,1.40145702]
[1730922347031,0.1201,2665.1,2663.4,0.8085]
[1730922347231,0.1201,2665.1,2663.5,0.55]
[1730922347466,0.1201,2665.1,2663.4,0.8085]
[1730922347782,0.1201,2665.1,2662.1,0.66116976]
[1730922347783,0.1201,2664.9,2663.1,0.8085]
[1730922347927,0.1201,2664.7,2662.3,0.8085]
[1730922348362,0.55,2664.5,2662.3,0.8085]
[1730922348590,0.1201,2664.4,2662.3,0.8085]
[1730922348877,0.1201,2664.2,2662.3,0.8085]
[1730922349297,0.1201,2664.2,2662.4,0.07510117]
[1730922349473,0.1201,2664.2,2662.5,0.7887]
[1730922349654,0.1201,2664.2,2662.7,0.7887]
[1730922349861,0.1201,2664.2,2662.8,13.122]
[1730922350093,0.1201,2664.2,2662.9,0.55]
[1730922351203,0.1201,2664.2,2663.0,0.07508704]
[1730922351349,0.1201,2664.2,2663.1,13.122]
[1730922351551,0.1201,2664.2,2663.2,1.39479571]
[1730922351989,0.1201,2664.2,2663.2,1.3197087]
[1730922353898,0.1201,2664.2,2663.2,2.0801087]
[1730922356023,1.05900596,2664.2,2663.2,2.0801087]
[1730922356396,1.05900596,2664.2,2663.3,0.55]
[1730922356607,1.05900596,2664.2,2663.4,13.38501087]
[1730922357599,0.1201,2664.2,2663.5,0.55]
[1730922357794,0.0652809,2665.2,2663.5,0.55]
[1730922358012,1.501587,2664.8,2663.5,0.55]
[1730922358299,1.501587,2664.8,2663.7,0.55]
[1730922360214,1.501587,2664.8,2663.2,0.7604]
[1730922360417,1.501587,2664.8,2663.3,0.55]
[1730922360618,1.501587,2664.8,2663.3,0.62507997]
[1730922361088,1.501587,2664.8,2663.5,0.55]
[1730922361321,2.41752193,2664.8,2663.7,0.55]
[1730922361522,2.41752193,2664.8,2663.8,13.12]
[1730922362956,2.41752193,2664.8,2663.6,1.367]
[1730922363259,2.41752193,2664.8,2663.3,0.55]
[1730922364708,2.41752193,2664.8,2663.5,0.55]
[1730922365828,2.41752193,2664.8,2663.4,0.0750799]
[1730922365829,2.41752193,2664.8,2663.3,0.55]
[1730922366463,2.87600045,2664.8,2662.9,0.7627]
[1730922366753,2.41752193,2664.8,2662.9,0.7627]
[1730922366952,0.24175219,2664.7,2662.9,0.7627]
[1730922368756,0.24175219,2664.7,2663.0,0.55]
[1730922371248,0.24175219,2664.7,2662.7,0.3913435]
[1730922371449,3.43923867,2664.7,2662.8,0.07509393]
[1730922371785,0.58667606,2664.6,2662.8,0.07509393]
[1730922372483,3.78416254,2664.6,2662.7,0.3913435]
[1730922372786,4.40147852,2664.5,2662.7,0.3913435]
[1730922372989,3.19798116,2664.4,2662.7,0.3913435]
[1730922373208,3.19798116,2664.3,2662.7,0.3913435]
[1730922373410,0.31979812,2664.2,2662.7,0.3913435]
[1730922374162,0.31979812,2664.2,2662.8,0.55]
[1730922374787,0.31979812,2664.2,2662.7,0.55]
[1730922374988,3.19798116,2664.5,2662.7,0.55]
[1730922375723,3.19798116,2664.4,2662.7,0.55]
[1730922376082,0.59667606,2664.6,2662.7,0.55]
[1730922376294,3.19757794,2664.5,2662.7,0.55]
[1730922376487,3.19757794,2664.4,2662.7,0.55]
[1730922376821,0.31975779,2664.3,2662.7,0.55]
[1730922377385,0.31975779,2664.3,2662.9,0.55]
[1730922378000,0.31975779,2664.3,2662.7,0.55]
[1730922378805,0.31975779,2664.3,2662.6,0.39143052]
[1730922379039,3.20757794,2664.1,2662.0,0.7716]
[1730922379337,3.20757794,2664.1,2661.6,0.05631788]
[1730922379338,3.19757794,2663.7,2661.6,0.05631788]
[1730922379830,0.01,2663.8,2661.6,0.05631788]
[1730922380242,0.06533173,2663.6,2661.6,0.13144613]
[1730922380796,0.06533173,2663.6,2661.7,0.55]
[1730922381004,0.06533173,2663.6,2661.9,0.55]
[1730922381444,0.06533173,2663.6,2661.7,0.55]
[1730922383234,0.57,2663.5,2661.6,0.05631788]
[1730922383435,1.02847852,2663.5,2661.6,0.05631788]
[1730922383762,0.49328176,2663.4,2661.6,0.05631788]
[1730922384882,0.49328176,2663.4,2661.7,0.55]
[1730922384883,0.95176028,2663.4,2661.7,0.55]
[1730922385471,0.01,2663.0,2661.2,0.7526]
[1730922385849,0.55,2662.9,2661.2,0.7526]
[1730922386050,0.55,2662.9,2660.4,0.40167869]
[1730922386051,0.7526,2662.7,2660.4,0.39167869]
[1730922386252,0.47847852,2662.8,2659.9,0.02]
[1730922386253,0.7526,2662.5,2659.9,0.02]
[1730922386581,0.7526,2662.5,2660.2,0.3917093]
[1730922386875,0.7526,2662.5,2660.3,0.07515517]
[1730922387181,0.7526,2662.5,2660.7,0.01]
[1730922387473,0.7526,2662.5,2660.8,0.55]
[1730922387673,0.7526,2662.5,2661.0,0.55]
[1730922388542,0.7526,2662.5,2661.2,3.55]
[1730922388748,0.7526,2662.5,2661.3,1.67571331]
[1730922389061,0.7526,2662.5,2661.5,0.815]
[1730922389260,0.7526,2662.5,2661.6,0.55]
[1730922389435,0.7526,2662.5,2661.8,0.55]
[1730922390450,0.7526,2662.5,2661.8,0.62512814]
[1730922390783,0.7526,2662.5,2661.9,1.09443901]
[1730922390952,0.7526,2662.5,2662.0,13.132]
[1730922393084,1.69129716,2662.5,2662.0,13.132]
[1730922393975,1.69129716,2662.5,2662.0,13.947]
[1730922394952,1.69129716,2662.5,2662.0,13.132]
[1730922395171,1.69129716,2662.5,2662.0,14.6365039]
[1730922395695,0.7526,2663.5,2662.2,0.8186]
[1730922396690,0.7526,2663.5,2661.6,0.55]
[1730922396849,0.55,2663.4,2661.6,0.55]
[1730922397053,0.7526,2663.3,2661.7,0.8186]
[1730922397361,0.95194947,2663.6,2661.7,0.8186]
[1730922397362,0.7526,2663.1,2661.7,0.8186]
[1730922397986,0.7526,2663.1,2661.8,0.89372767]
[1730922398186,0.7526,2663.1,2661.9,13.128]
[1730922398393,0.7526,2663.5,2662.1,0.8186]
[1730922398782,0.7526,2663.5,2662.2,0.7578]
[1730922401228,0.55,2663.2,2662.2,0.7578]
[1730922401424,0.7526,2663.1,2662.2,0.7578]
[1730922403188,0.7027795,2663.1,2662.2,0.7578]
[1730922405837,0.55,2663.4,2662.3,13.9327]
[1730922405993,0.55,2663.4,2662.4,1.46838187]
[1730922406198,1.2528,2663.4,2662.4,0.07511187]
[1730922406442,0.7028,2663.4,2662.3,0.8037]
[1730922406650,0.55,2663.3,2662.3,0.8037]
[1730922408602,0.7028,2664.3,2662.5,0.8037]
[1730922408810,0.7028,2664.3,2662.7,0.8037]
[1730922409103,0.7028,2664.3,2662.9,0.8037]
[1730922410358,0.55,2664.2,2662.9,0.8037]
[1730922411740,0.55,2664.0,2662.9,0.8037]
[1730922412303,0.55,2664.0,2662.9,0.86002367]
[1730922413658,0.7028,2663.9,2662.9,0.86002367]
[1730922413854,0.55,2663.8,2662.9,0.86002367]
[1730922414593,0.55,2663.6,2662.9,0.05632367]
[1730922415683,0.55,2663.4,2662.9,0.05632367]
[1730922416898,0.55,2663.4,2661.5,0.7918]
[1730922418059,0.55,2663.4,2661.7,0.7519]
[1730922418296,0.55,2663.4,2661.9,0.7519]
[1730922418459,0.55,2663.4,2662.0,0.7519]
[1730922419591,0.55,2663.3,2662.0,0.7519]
[1730922422013,0.7028,2663.4,2662.2,0.7519]
[1730922423284,0.55,2663.3,2662.2,0.7519]
[1730922423912,0.55,2663.3,2662.2,0.38023913]
[1730922424115,0.55,2663.1,2662.2,0.15688755]
[1730922426487,0.55,2663.1,2661.5,0.07512359]
[1730922426687,0.7703,2663.5,2661.5,0.07512359]
[1730922426887,0.7703,2663.5,2661.4,0.59754021]
[1730922427094,0.7703,2663.5,2661.5,0.7519]
[1730922427887,0.55,2663.4,2661.7,0.7519]
[1730922428528,0.76827725,2663.4,2661.7,0.7519]
[1730922430638,0.76827725,2663.4,2661.5,0.7615]
[1730922433598,3.76827725,2663.4,2661.5,0.7615]
[1730922434236,7.5909381,2663.4,2661.5,0.7615]
[1730922435300,3.76827725,2663.4,2661.7,0.7664]
[1730922435501,0.92237106,2663.3,2661.9,0.7942]
[1730922435709,0.92237106,2663.3,2661.4,0.58754021]
[1730922435710,0.92237106,2663.3,2662.1,0.7942]
[1730922436807,0.55,2663.4,2662.3,0.7838]
[1730922437143,0.55,2663.6,2662.3,0.7838]
[1730922437348,0.85409564,2663.7,2662.3,0.7838]
[1730922437545,0.7664,2663.8,2662.5,0.7556]
[1730922437846,0.8232,2664.0,2662.5,0.7556]
[1730922438051,1.22018609,2663.9,2662.5,0.7556]
[1730922438357,0.7556,2663.9,2662.7,0.7556]
[1730922438858,0.55,2663.8,2662.7,0.7556]
[1730922442533,0.55,2663.9,2662.7,0.7556]
[1730922448217,0.55,2663.9,2662.7,0.7456]
[1730922449296,0.7804,2663.8,2662.7,0.7456]
[1730922449498,0.55,2663.7,2662.7,0.7456]
[1730922449853,0.55,2663.9,2662.7,0.7456]
[1730922450051,0.84309465,2664.0,2662.8,0.0751048]
[1730922450254,5.71128795,2664.8,2662.9,13.124]
[1730922450511,1.3167288,2664.7,2663.0,1.31991048]
[1730922450710,1.3167288,2664.7,2662.7,0.01]
[1730922450711,1.85788884,2664.9,2662.7,0.01]
[1730922450862,3.17779884,2664.9,2662.7,0.01]
[1730922451062,3.17779884,2664.9,2662.6,3.29008611]
[1730922451063,3.56908527,2664.9,2662.8,0.8085]
[1730922451305,3.56908527,2664.9,2662.8,0.8185]
[1730922451914,0.55,2664.8,2662.8,0.8185]
[1730922452126,0.55,2664.6,2662.8,0.8285]
[1730922452409,0.41190853,2664.7,2662.8,0.8285]
[1730922452606,1.22108318,2664.9,2662.8,0.8285]
[1730922453410,0.55,2664.8,2662.8,0.8285]
[1730922453766,0.55,2664.8,2662.8,0.8185]
[1730922454009,4.372,2664.8,2662.8,0.8085]
[1730922454177,4.372,2664.8,2663.0,0.7694]
[1730922454407,0.55,2664.6,2663.2,0.7931]
[1730922454586,0.55,2664.6,2663.4,0.7931]
[1730922454784,0.55,2664.8,2663.4,0.7931]
[1730922458330,0.55,2664.8,2662.6,12.14]
[1730922458331,0.55,2664.8,2663.5,0.07508224]
[1730922458534,1.22108318,2664.9,2663.6,0.7864]
[1730922459911,0.55,2664.8,2663.6,0.7864]
[1730922460735,0.55,2664.8,2663.8,0.7864]
[1730922467510,1.3055,2664.8,2663.8,0.7864]
[1730922470150,0.55,2664.8,2663.8,0.7864]
[1730922470354,1.22108318,2664.9,2663.8,0.7864]
[1730922470515,1.22108318,2664.9,2664.0,0.8185]
[1730922470717,0.82979675,2664.9,2664.2,0.8185]
[1730922471022,0.39121283,2665.2,2664.4,0.8185]
[1730922472313,0.55,2665.1,2664.4,0.8185]
[1730922474113,0.55,2665.1,2663.4,0.07506359]
[1730922474341,0.55,2665.1,2663.4,1.29556995]
[1730922474655,0.55,2665.1,2663.5,0.05630561]
[1730922474849,0.55,2665.1,2663.6,0.07506299]
[1730922475860,0.55,2665.1,2663.7,13.119]
[1730922476056,0.55,2665.1,2663.8,0.07506242]
[1730922476352,1.3871434,2665.1,2663.8,0.07506242]
[1730922476552,0.8371434,2665.1,2663.8,1.39446866]
[1730922476713,0.39119865,2665.6,2663.9,0.07505478]
[1730922477122,1.86305223,2665.8,2664.0,0.8153]
[1730922477459,1.86305223,2665.8,2664.2,0.8153]
[1730922477667,1.86305223,2665.8,2664.3,0.07503955]
[1730922477867,1.82799586,2666.6,2664.4,0.8153]
[1730922478024,1.82801466,2666.4,2664.5,0.89033616]
[1730922478347,1.82801466,2666.4,2664.5,0.8153]
[1730922478521,1.82801466,2666.4,2664.6,0.86753235]
[1730922478918,1.82801466,2666.4,2664.5,0.01]
[1730922478919,1.82801466,2666.4,2664.8,0.7925]
[1730922479380,1.82801466,2666.4,2664.9,0.7925]
[1730922479541,2.03694209,2666.4,2665.1,0.7925]
[1730922479868,2.03694209,2666.4,2665.3,0.7822]
[1730922480463,0.20892743,2666.4,2665.3,0.7822]
[1730922480978,0.55,2666.3,2665.3,0.7822]
[1730922481119,0.55,2666.1,2665.5,0.7822]
[1730922482722,0.55,2666.3,2665.5,0.7822]
[1730922484070,0.55,2666.3,2665.5,0.7579]
[1730922486444,1.3014,2666.3,2665.5,0.7579]
[1730922486935,1.3014,2666.3,2665.5,0.55019487]
[1730922487270,0.55,2666.1,2665.5,0.55019487]
[1730922487932,0.55,2666.1,2665.5,0.25033581]
[1730922488932,0.82696773,2666.3,2665.4,13.113]
[1730922489131,1.88460283,2666.7,2665.6,0.07502608]
[1730922489337,1.88460283,2666.7,2664.9,0.08501544]
[1730922489698,2.15528311,2666.7,2664.9,0.08501544]
[1730922489838,2.15528311,2666.7,2665.0,13.111]
[1730922490037,2.15528311,2666.7,2665.1,0.07501548]
[1730922490263,1.88460283,2666.7,2665.1,0.01]
[1730922490482,1.89776808,2666.9,2665.1,0.02]
[1730922490786,1.89776808,2666.9,2665.1,0.57]
[1730922490934,1.89776808,2666.9,2665.2,0.7641]
[1730922491137,1.89776808,2666.9,2665.3,13.11]
[1730922491335,1.88460283,2666.7,2665.5,0.7641]
[1730922491639,1.83179107,2666.5,2665.6,13.8648]
[1730922492078,0.55,2666.3,2665.6,13.8648]
[1730922492283,0.55,2666.3,2665.7,13.112]
[1730922492570,0.55,2666.4,2665.7,13.112]
[1730922492733,3.55,2666.4,2665.7,13.112]
[1730922492934,0.62069911,2666.3,2665.7,13.112]
[1730922493130,0.55,2666.2,2665.7,13.113]
[1730922495135,0.55,2666.2,2665.7,0.00026042]
[1730922495330,0.62069911,2666.3,2665.6,0.7548]
[1730922495565,5.65699107,2666.5,2665.6,0.7548]
[1730922497181,6.52071987,2666.5,2665.6,0.7548]